[Event "Late-Titled-Tuesday-Blitz-February-20-2024"]
[Site "Chess.com"]
[Date "2024.02.20"]
[Round "4"]
[White "Ready4abattle"]
[Black "DefiantChair"]
[Result "0-1"]
[WhiteElo "2284"]
[BlackElo "2607"]
[TimeControl "180+1"]
[EndTime "14:38:08 PST"]
[Termination "DefiantChair won on time"]

1. e4 {[%clk 0:03:00.9]} 1... c5 {[%clk 0:02:59.8]} 2. Nf3 {[%clk 0:03:01.2]}
2... d6 {[%clk 0:03:00.2]} 3. d4 {[%clk 0:03:01.6]} 3... cxd4 {[%clk 0:03:01.1]}
4. Nxd4 {[%clk 0:03:02.2]} 4... Nf6 {[%clk 0:03:01.8]} 5. Nc3 {[%clk 0:03:02.6]}
5... a6 {[%clk 0:03:02.3]} 6. h3 {[%clk 0:03:02.9]} 6... e5 {[%clk 0:03:02]} 7.
Nde2 {[%clk 0:03:02.8]} 7... h5 {[%clk 0:03:01.3]} 8. Bg5 {[%clk 0:03:02.2]}
8... Be6 {[%clk 0:03:00.7]} 9. Bxf6 {[%clk 0:03:01.6]} 9... Qxf6 {[%clk
0:03:01.6]} 10. Nd5 {[%clk 0:03:02]} 10... Qd8 {[%clk 0:03:01.7]} 11. Qd3 {[%clk
0:03:01.7]} 11... g6 {[%clk 0:03:02]} 12. O-O-O {[%clk 0:03:01.2]} 12... Bh6+
{[%clk 0:02:55.8]} 13. Kb1 {[%clk 0:03:01]} 13... Nd7 {[%clk 0:02:56.5]} 14. h4
{[%clk 0:02:49]} 14... Nc5 {[%clk 0:02:54.3]} 15. Qa3 {[%clk 0:02:48.9]} 15...
b5 {[%clk 0:02:47.9]} 16. Nec3 {[%clk 0:02:41.9]} 16... Bd7 {[%clk 0:02:33.6]}
17. g3 {[%clk 0:02:21.5]} 17... Bc6 {[%clk 0:02:31.5]} 18. Be2 {[%clk
0:02:02.2]} 18... Qb8 {[%clk 0:02:24.7]} 19. b4 {[%clk 0:01:52.1]} 19... Nd7
{[%clk 0:02:24.2]} 20. g4 {[%clk 0:01:45.4]} 20... hxg4 {[%clk 0:02:05.2]} 21.
Bxg4 {[%clk 0:01:45.1]} 21... Nb6 {[%clk 0:02:04.7]} 22. Nxb6 {[%clk 0:01:35.2]}
22... Qxb6 {[%clk 0:02:04.5]} 23. Rxd6 {[%clk 0:01:12]} 23... Qc7 {[%clk
0:01:43.4]} 24. Rhd1 {[%clk 0:01:09.7]} 24... O-O {[%clk 0:01:41.8]} 25. Qb3
{[%clk 0:01:07]} 25... Kg7 {[%clk 0:01:33]} 26. R6d3 {[%clk 0:00:57]} 26... a5
{[%clk 0:01:30.8]} 27. bxa5 {[%clk 0:00:53.1]} 27... b4 {[%clk 0:01:31.2]} 28.
Nd5 {[%clk 0:00:50.8]} 28... Qa7 {[%clk 0:01:22.9]} 29. Nb6 {[%clk 0:00:35.1]}
29... Qxa5 {[%clk 0:01:13.1]} 30. Nxa8 {[%clk 0:00:33.5]} 30... Qxa8 {[%clk
0:01:13]} 31. Qb2 {[%clk 0:00:26.8]} 31... Bxe4 {[%clk 0:01:07.5]} 32. Qxe5+
{[%clk 0:00:26.2]} 32... Kg8 {[%clk 0:01:06.6]} 33. Rb3 {[%clk 0:00:20.6]} 33...
Bg7 {[%clk 0:01:02.8]} 34. Qc5 {[%clk 0:00:16.2]} 34... f5 {[%clk 0:00:56.2]}
35. Qc4+ {[%clk 0:00:14.4]} 35... Kh7 {[%clk 0:00:54]} 36. f3 {[%clk 0:00:14.1]}
36... Rc8 {[%clk 0:00:49.3]} 0-1

[Event "Late-Titled-Tuesday-Blitz-February-20-2024"]
[Site "Chess.com"]
[Date "2024.02.20"]
[Round "4"]
[White "ChEsper99"]
[Black "Real_taiatai"]
[Result "0-1"]
[WhiteElo "2264"]
[BlackElo "2456"]
[TimeControl "180+1"]
[EndTime "14:38:08 PST"]
[Termination "Real_taiatai won on time"]

1. d4 {[%clk 0:03:00.9]} 1... Nf6 {[%clk 0:02:57.2]} 2. Bf4 {[%clk 0:03:01.5]}
2... g6 {[%clk 0:02:58.1]} 3. Nf3 {[%clk 0:02:59]} 3... d5 {[%clk 0:02:59]} 4.
e3 {[%clk 0:02:56.4]} 4... Bg7 {[%clk 0:02:59.3]} 5. h3 {[%clk 0:02:56.7]} 5...
O-O {[%clk 0:02:59.6]} 6. c3 {[%clk 0:02:56.2]} 6... c5 {[%clk 0:02:51.5]} 7.
Nbd2 {[%clk 0:02:46.5]} 7... Nc6 {[%clk 0:02:46.8]} 8. Bd3 {[%clk 0:02:45.7]}
8... b6 {[%clk 0:02:43.9]} 9. O-O {[%clk 0:02:44.1]} 9... Bb7 {[%clk 0:02:43.6]}
10. Ne5 {[%clk 0:02:36.8]} 10... Ne8 {[%clk 0:02:42.3]} 11. Ndf3 {[%clk
0:02:31.8]} 11... Nd6 {[%clk 0:02:39.8]} 12. Nxc6 {[%clk 0:02:29.6]} 12... Bxc6
{[%clk 0:02:40]} 13. Qe2 {[%clk 0:02:15.9]} 13... f6 {[%clk 0:02:35.2]} 14. c4
{[%clk 0:01:51.1]} 14... dxc4 {[%clk 0:02:32.9]} 15. Bxc4+ {[%clk 0:01:50]}
15... Nxc4 {[%clk 0:02:33.3]} 16. Qxc4+ {[%clk 0:01:50.9]} 16... Bd5 {[%clk
0:02:33.6]} 17. Qe2 {[%clk 0:01:46.5]} 17... c4 {[%clk 0:02:32.4]} 18. e4 {[%clk
0:01:43]} 18... Bf7 {[%clk 0:02:30.8]} 19. Rfd1 {[%clk 0:01:31.6]} 19... b5
{[%clk 0:02:30.9]} 20. Rac1 {[%clk 0:01:22.2]} 20... Qa5 {[%clk 0:02:27.5]} 21.
a3 {[%clk 0:01:21.1]} 21... Rac8 {[%clk 0:02:24.6]} 22. Bd2 {[%clk 0:01:19.1]}
22... Qa6 {[%clk 0:02:19.7]} 23. Bb4 {[%clk 0:01:15.8]} 23... Rfe8 {[%clk
0:02:18.6]} 24. d5 {[%clk 0:01:16.2]} 24... Qb7 {[%clk 0:02:03.6]} 25. Nd4
{[%clk 0:01:11.9]} 25... Qd7 {[%clk 0:01:53.5]} 26. Nc6 {[%clk 0:00:39.5]} 26...
e6 {[%clk 0:01:52.6]} 27. dxe6 {[%clk 0:00:17.2]} 27... Qxe6 {[%clk 0:01:52.2]}
28. Nd4 {[%clk 0:00:10.9]} 28... Qb6 {[%clk 0:01:47.8]} 29. Qc2 {[%clk 0:00:07]}
29... a5 {[%clk 0:01:45.8]} 30. Be1 {[%clk 0:00:05]} 30... f5 {[%clk 0:01:44.1]}
31. Ne2 {[%clk 0:00:02.7]} 31... Rxe4 {[%clk 0:01:43.3]} 32. Ng3 {[%clk
0:00:02.9]} 32... Re7 {[%clk 0:01:41.5]} 33. Bc3 {[%clk 0:00:03.6]} 33... Bh6
{[%clk 0:01:37.2]} 34. Rb1 {[%clk 0:00:02.9]} 34... b4 {[%clk 0:01:30.9]} 35.
axb4 {[%clk 0:00:02.4]} 35... axb4 {[%clk 0:01:31.1]} 36. Bd2 {[%clk 0:00:03.1]}
36... Bg7 {[%clk 0:01:28.2]} 37. Be3 {[%clk 0:00:03.6]} 37... Rxe3 {[%clk
0:01:27.4]} 38. fxe3 {[%clk 0:00:03.5]} 38... Qxe3+ {[%clk 0:01:28.3]} 39. Qf2
{[%clk 0:00:04]} 39... Qg5 {[%clk 0:01:15.2]} 40. Ne2 {[%clk 0:00:03.9]} 40...
c3 {[%clk 0:01:12.4]} 41. bxc3 {[%clk 0:00:03.9]} 41... bxc3 {[%clk 0:01:12.7]}
42. Rbc1 {[%clk 0:00:04]} 42... c2 {[%clk 0:01:08.8]} 43. Re1 {[%clk 0:00:03.5]}
43... Bb2 {[%clk 0:01:06.1]} 44. g3 {[%clk 0:00:01.5]} 44... Qd2 {[%clk
0:01:05.7]} 0-1

[Event "Late-Titled-Tuesday-Blitz-February-20-2024"]
[Site "Chess.com"]
[Date "2024.02.20"]
[Round "4"]
[White "jefferyx"]
[Black "NikolaGry"]
[Result "1-0"]
[WhiteElo "3020"]
[BlackElo "2724"]
[TimeControl "180+1"]
[EndTime "14:38:09 PST"]
[Termination "jefferyx won by resignation"]

1. d4 {[%clk 0:03:00.9]} 1... g6 {[%clk 0:02:59]} 2. e4 {[%clk 0:03:00.8]} 2...
Bg7 {[%clk 0:02:58.5]} 3. Nf3 {[%clk 0:03:01.1]} 3... c6 {[%clk 0:02:56.5]} 4.
c4 {[%clk 0:03:00.9]} 4... d5 {[%clk 0:02:55.9]} 5. cxd5 {[%clk 0:03:01.8]} 5...
cxd5 {[%clk 0:02:55.9]} 6. e5 {[%clk 0:03:02.5]} 6... Nc6 {[%clk 0:02:54.4]} 7.
Bb5 {[%clk 0:03:02]} 7... Bg4 {[%clk 0:02:44.3]} 8. Bxc6+ {[%clk 0:02:53.6]}
8... bxc6 {[%clk 0:02:43.4]} 9. O-O {[%clk 0:02:54.5]} 9... Qd7 {[%clk
0:02:22.8]} 10. Nbd2 {[%clk 0:02:51]} 10... Nh6 {[%clk 0:02:12.1]} 11. h3 {[%clk
0:02:51.1]} 11... Bxf3 {[%clk 0:02:09]} 12. Qxf3 {[%clk 0:02:49.9]} 12... O-O
{[%clk 0:02:06.6]} 13. Nb3 {[%clk 0:02:50.2]} 13... f6 {[%clk 0:01:55.1]} 14.
Nc5 {[%clk 0:02:49.8]} 14... Qf5 {[%clk 0:01:49.6]} 15. Qxf5 {[%clk 0:02:41.1]}
15... Nxf5 {[%clk 0:01:48.8]} 16. Ne6 {[%clk 0:02:42]} 16... Rfc8 {[%clk
0:01:37.6]} 17. g4 {[%clk 0:02:41.9]} 17... Nh6 {[%clk 0:01:23.1]} 18. exf6
{[%clk 0:02:38.9]} 18... exf6 {[%clk 0:01:22.3]} 19. Bf4 {[%clk 0:02:39.4]}
19... f5 {[%clk 0:01:12.3]} 20. f3 {[%clk 0:02:23.4]} 20... Re8 {[%clk
0:00:56.1]} 21. Nxg7 {[%clk 0:02:15.1]} 21... Kxg7 {[%clk 0:00:55]} 22. Rac1
{[%clk 0:02:05.9]} 22... Re6 {[%clk 0:00:37.9]} 23. Rfe1 {[%clk 0:02:06.1]}
23... Rae8 {[%clk 0:00:35.9]} 24. Rxe6 {[%clk 0:02:06.5]} 24... Rxe6 {[%clk
0:00:35.9]} 25. Kf2 {[%clk 0:02:07.4]} 25... fxg4 {[%clk 0:00:31.5]} 26. hxg4
{[%clk 0:02:07.3]} 26... Nf7 {[%clk 0:00:31.7]} 27. Rc3 {[%clk 0:02:07.4]} 27...
h5 {[%clk 0:00:25.8]} 28. gxh5 {[%clk 0:01:42.5]} 28... gxh5 {[%clk 0:00:25.5]}
29. Ra3 {[%clk 0:01:43.2]} 29... Nd6 {[%clk 0:00:14.6]} 30. Rxa7+ {[%clk
0:01:41.3]} 30... Kg6 {[%clk 0:00:14.8]} 31. Bxd6 {[%clk 0:01:40.5]} 31... Rxd6
{[%clk 0:00:14.7]} 32. Rc7 {[%clk 0:01:39.3]} 32... h4 {[%clk 0:00:13.3]} 33. a4
{[%clk 0:01:39.5]} 33... Kh6 {[%clk 0:00:09.8]} 34. a5 {[%clk 0:01:33.8]} 34...
Rg6 {[%clk 0:00:09.4]} 35. a6 {[%clk 0:01:33.7]} 35... h3 {[%clk 0:00:06.9]} 36.
a7 {[%clk 0:01:34.1]} 36... Rg8 {[%clk 0:00:07]} 37. Rxc6+ {[%clk 0:01:34.4]}
37... Kh5 {[%clk 0:00:07]} 38. Rc7 {[%clk 0:01:32.3]} 38... Kh6 {[%clk
0:00:05.5]} 39. Rc1 {[%clk 0:01:07.2]} 39... Kh5 {[%clk 0:00:05.5]} 40. Rg1
{[%clk 0:00:59.7]} 40... Rc8 {[%clk 0:00:05.2]} 41. Rg7 {[%clk 0:00:56.8]} 41...
Kh4 {[%clk 0:00:04.3]} 42. Rh7+ {[%clk 0:00:56.2]} 42... Kg5 {[%clk 0:00:04.4]}
43. Kg3 {[%clk 0:00:55.8]} 43... Ra8 {[%clk 0:00:03.3]} 44. b4 {[%clk
0:00:55.9]} 44... Kf5 {[%clk 0:00:03.3]} 45. b5 {[%clk 0:00:56.1]} 1-0

[Event "Late-Titled-Tuesday-Blitz-February-20-2024"]
[Site "Chess.com"]
[Date "2024.02.20"]
[Round "4"]
[White "GMBenjaminBok"]
[Black "Sanyura"]
[Result "1-0"]
[WhiteElo "3007"]
[BlackElo "2607"]
[TimeControl "180+1"]
[EndTime "14:38:11 PST"]
[Termination "GMBenjaminBok won by resignation"]

1. d4 {[%clk 0:03:00.9]} 1... Nf6 {[%clk 0:02:34.2]} 2. c4 {[%clk 0:03:00.9]}
2... g6 {[%clk 0:02:34.4]} 3. g3 {[%clk 0:03:01.2]} 3... Bg7 {[%clk 0:02:34.9]}
4. Bg2 {[%clk 0:03:01.9]} 4... d6 {[%clk 0:02:34.6]} 5. Nc3 {[%clk 0:03:02.2]}
5... O-O {[%clk 0:02:35.3]} 6. Nf3 {[%clk 0:03:02.5]} 6... Nbd7 {[%clk 0:02:36]}
7. O-O {[%clk 0:03:02.5]} 7... e5 {[%clk 0:02:36.7]} 8. e4 {[%clk 0:03:03.2]}
8... exd4 {[%clk 0:02:37.2]} 9. Nxd4 {[%clk 0:03:04.1]} 9... Nc5 {[%clk
0:02:37.9]} 10. h3 {[%clk 0:03:04.1]} 10... Re8 {[%clk 0:02:38.3]} 11. Re1
{[%clk 0:03:04.3]} 11... Bd7 {[%clk 0:02:38.8]} 12. Rb1 {[%clk 0:03:03.4]} 12...
a5 {[%clk 0:02:39.1]} 13. b3 {[%clk 0:03:01.2]} 13... Qc8 {[%clk 0:02:37.2]} 14.
Kh2 {[%clk 0:03:00.2]} 14... a4 {[%clk 0:02:33.7]} 15. b4 {[%clk 0:02:55.2]}
15... Ne6 {[%clk 0:02:24.2]} 16. Be3 {[%clk 0:02:52.6]} 16... Nxd4 {[%clk
0:01:33.4]} 17. Bxd4 {[%clk 0:02:53.5]} 17... c5 {[%clk 0:01:33.9]} 18. bxc5
{[%clk 0:02:51.3]} 18... dxc5 {[%clk 0:01:34.8]} 19. Bxf6 {[%clk 0:02:49.6]}
19... Bxf6 {[%clk 0:01:34.6]} 20. e5 {[%clk 0:02:20.4]} 20... Bxe5 {[%clk
0:01:09.2]} 21. Bxb7 {[%clk 0:02:20.2]} 21... Qd8 {[%clk 0:01:01.9]} 22. Bxa8
{[%clk 0:01:25.9]} 22... Bxc3 {[%clk 0:01:01.2]} 23. Rxe8+ {[%clk 0:01:26.8]}
23... Qxe8 {[%clk 0:01:01.7]} 24. Bd5 {[%clk 0:01:21.9]} 24... Bd4 {[%clk
0:00:57.9]} 25. Qf3 {[%clk 0:01:18.8]} 25... Be6 {[%clk 0:00:47.5]} 26. Re1
{[%clk 0:01:09.3]} 26... Kg7 {[%clk 0:00:42.1]} 27. Bxe6 {[%clk 0:01:09.1]}
27... fxe6 {[%clk 0:00:42.1]} 28. Rb1 {[%clk 0:01:07.5]} 28... h5 {[%clk
0:00:16.7]} 29. Rb7+ {[%clk 0:01:06.5]} 29... Kh6 {[%clk 0:00:17.1]} 30. h4
{[%clk 0:00:43.3]} 30... g5 {[%clk 0:00:16.9]} 31. Qe4 {[%clk 0:00:26.2]} 31...
Qg8 {[%clk 0:00:14.3]} 32. Re7 {[%clk 0:00:15.6]} 1-0

[Event "Late-Titled-Tuesday-Blitz-February-20-2024"]
[Site "Chess.com"]
[Date "2024.02.20"]
[Round "4"]
[White "Andrei_Skvortsov"]
[Black "Msb2"]
[Result "1/2-1/2"]
[WhiteElo "2698"]
[BlackElo "3006"]
[TimeControl "180+1"]
[EndTime "14:38:13 PST"]
[Termination "Game drawn by repetition"]

1. Nc3 {[%clk 0:02:59.5]} 1... d5 {[%clk 0:02:59.8]} 2. e4 {[%clk 0:02:58.9]}
2... e6 {[%clk 0:03:00.4]} 3. exd5 {[%clk 0:02:50.9]} 3... exd5 {[%clk
0:03:01.3]} 4. d4 {[%clk 0:02:51.3]} 4... Nc6 {[%clk 0:02:55.2]} 5. Nf3 {[%clk
0:02:47]} 5... a6 {[%clk 0:02:54.2]} 6. h3 {[%clk 0:02:46.1]} 6... Bf5 {[%clk
0:02:50.4]} 7. Bd3 {[%clk 0:02:45.6]} 7... Qd7 {[%clk 0:02:45.9]} 8. O-O {[%clk
0:02:38.6]} 8... O-O-O {[%clk 0:02:45.5]} 9. a3 {[%clk 0:02:37.1]} 9... Nf6
{[%clk 0:02:37.9]} 10. Re1 {[%clk 0:02:34.6]} 10... Bd6 {[%clk 0:02:31.3]} 11.
Bf1 {[%clk 0:02:30.3]} 11... Rde8 {[%clk 0:02:28.7]} 12. Be3 {[%clk 0:02:20.3]}
12... Ne7 {[%clk 0:02:17.2]} 13. Nh4 {[%clk 0:02:13.3]} 13... Be6 {[%clk
0:02:16.1]} 14. b4 {[%clk 0:02:01]} 14... Rhg8 {[%clk 0:02:11.3]} 15. b5 {[%clk
0:02:00.1]} 15... axb5 {[%clk 0:02:07.6]} 16. Nxb5 {[%clk 0:01:56.5]} 16... g5
{[%clk 0:02:07.4]} 17. Nxd6+ {[%clk 0:01:55.4]} 17... cxd6 {[%clk 0:02:02.4]}
18. Nf3 {[%clk 0:01:53.8]} 18... g4 {[%clk 0:02:03]} 19. hxg4 {[%clk 0:01:53.9]}
19... Bxg4 {[%clk 0:02:01.4]} 20. Bf4 {[%clk 0:01:33.4]} 20... Ng6 {[%clk
0:01:49]} 21. Bg3 {[%clk 0:01:25.2]} 21... Ne4 {[%clk 0:01:47.2]} 22. Qd3 {[%clk
0:01:13.1]} 22... Nxg3 {[%clk 0:01:39.9]} 23. fxg3 {[%clk 0:01:14]} 23... Bf5
{[%clk 0:01:38]} 24. Qc3+ {[%clk 0:01:13.9]} 24... Kb8 {[%clk 0:01:37.9]} 25.
Qb3 {[%clk 0:01:08]} 25... Rxe1 {[%clk 0:01:35]} 26. Rxe1 {[%clk 0:01:06.7]}
26... Be4 {[%clk 0:01:35.9]} 27. Ng5 {[%clk 0:00:58.6]} 27... Re8 {[%clk
0:00:56]} 28. Bb5 {[%clk 0:00:54.1]} 28... Bxc2 {[%clk 0:00:56.4]} 29. Rxe8+
{[%clk 0:00:42.7]} 29... Qxe8 {[%clk 0:00:57.3]} 30. Qxd5 {[%clk 0:00:28.5]}
30... Qe3+ {[%clk 0:00:44.2]} 31. Kh2 {[%clk 0:00:26.5]} 31... Ka7 {[%clk
0:00:44.8]} 32. Nxf7 {[%clk 0:00:18.4]} 32... Bb3 {[%clk 0:00:44.9]} 33. Qxd6
{[%clk 0:00:17.6]} 33... Bxf7 {[%clk 0:00:32.3]} 34. Qc5+ {[%clk 0:00:17.6]}
34... Kb8 {[%clk 0:00:32.7]} 35. Qd6+ {[%clk 0:00:17.9]} 35... Ka8 {[%clk
0:00:30.4]} 36. Qd8+ {[%clk 0:00:15.8]} 36... Ka7 {[%clk 0:00:30.9]} 37. Qa5+
{[%clk 0:00:15.1]} 37... Kb8 {[%clk 0:00:31.5]} 38. Qd8+ {[%clk 0:00:14.7]}
38... Ka7 {[%clk 0:00:32.2]} 39. Qa5+ {[%clk 0:00:15.1]} 39... Kb8 {[%clk
0:00:32.9]} 40. Qd8+ {[%clk 0:00:15.4]} 40... Ka7 {[%clk 0:00:33]} 1/2-1/2

[Event "Late-Titled-Tuesday-Blitz-February-20-2024"]
[Site "Chess.com"]
[Date "2024.02.20"]
[Round "4"]
[White "vovachesss"]
[Black "RantomOpening"]
[Result "0-1"]
[WhiteElo "2784"]
[BlackElo "2572"]
[TimeControl "180+1"]
[EndTime "14:38:16 PST"]
[Termination "RantomOpening won on time"]

1. e4 {[%clk 0:03:00.9]} 1... c5 {[%clk 0:02:59.6]} 2. c3 {[%clk 0:03:00.1]}
2... Nf6 {[%clk 0:02:59.5]} 3. e5 {[%clk 0:03:00.4]} 3... Nd5 {[%clk 0:02:59.9]}
4. Nf3 {[%clk 0:03:01.3]} 4... d6 {[%clk 0:02:59.9]} 5. Bb5+ {[%clk 0:03:01.7]}
5... Bd7 {[%clk 0:02:59.4]} 6. Bc4 {[%clk 0:03:02.6]} 6... Bc6 {[%clk
0:02:38.8]} 7. d4 {[%clk 0:02:57.7]} 7... e6 {[%clk 0:02:38.3]} 8. Bb3 {[%clk
0:02:55.5]} 8... b5 {[%clk 0:02:30.5]} 9. O-O {[%clk 0:02:49.9]} 9... Nd7 {[%clk
0:02:30]} 10. Re1 {[%clk 0:02:46.8]} 10... Qc7 {[%clk 0:02:29.1]} 11. a4 {[%clk
0:02:37.8]} 11... bxa4 {[%clk 0:02:27.7]} 12. Bxa4 {[%clk 0:02:37.4]} 12... Bxa4
{[%clk 0:02:27.3]} 13. Qxa4 {[%clk 0:02:37.2]} 13... Nb6 {[%clk 0:02:23.3]} 14.
Qb5 {[%clk 0:02:23.3]} 14... Be7 {[%clk 0:02:18.2]} 15. Nbd2 {[%clk 0:01:44.1]}
15... O-O {[%clk 0:02:17.9]} 16. exd6 {[%clk 0:01:43.5]} 16... Bxd6 {[%clk
0:02:17.6]} 17. Ne4 {[%clk 0:01:44.4]} 17... Be7 {[%clk 0:02:16.3]} 18. Be3
{[%clk 0:01:35.4]} 18... c4 {[%clk 0:02:13.7]} 19. Qh5 {[%clk 0:01:25.9]} 19...
Nd5 {[%clk 0:02:10]} 20. Ra2 {[%clk 0:01:05.8]} 20... Rab8 {[%clk 0:02:06.4]}
21. Rea1 {[%clk 0:01:05.8]} 21... Rb7 {[%clk 0:02:06.3]} 22. Bc1 {[%clk
0:01:05.8]} 22... N5f6 {[%clk 0:01:15.9]} 23. Nxf6+ {[%clk 0:01:00.8]} 23...
Nxf6 {[%clk 0:01:16.8]} 24. Qa5 {[%clk 0:00:53.7]} 24... Qc6 {[%clk 0:01:17.1]}
25. Qa6 {[%clk 0:00:51.4]} 25... Qe4 {[%clk 0:01:16.9]} 26. Qxc4 {[%clk
0:00:48.2]} 26... Qc2 {[%clk 0:01:07.8]} 27. h3 {[%clk 0:00:35.6]} 27... Bd6
{[%clk 0:01:07]} 28. b4 {[%clk 0:00:28.3]} 28... Qe4 {[%clk 0:01:01.9]} 29. Bd2
{[%clk 0:00:20.6]} 29... Rc7 {[%clk 0:01:01]} 30. Qf1 {[%clk 0:00:16.3]} 30...
Nd5 {[%clk 0:01:00.8]} 31. c4 {[%clk 0:00:09.2]} 31... Nf4 {[%clk 0:00:58.4]}
32. Bxf4 {[%clk 0:00:08.7]} 32... Qxf4 {[%clk 0:00:59.3]} 33. Rxa7 {[%clk
0:00:07.2]} 33... Rcc8 {[%clk 0:00:54.5]} 34. c5 {[%clk 0:00:07.2]} 34... Bb8
{[%clk 0:00:55.1]} 35. R7a4 {[%clk 0:00:06.8]} 35... h5 {[%clk 0:00:55.4]} 36.
b5 {[%clk 0:00:06]} 36... g5 {[%clk 0:00:55.5]} 37. c6 {[%clk 0:00:03.5]} 37...
g4 {[%clk 0:00:55.3]} 38. hxg4 {[%clk 0:00:04.4]} 38... hxg4 {[%clk 0:00:56.2]}
39. d5 {[%clk 0:00:05.3]} 39... Qf5 {[%clk 0:00:56.4]} 40. Nh4 {[%clk
0:00:04.9]} 40... Qh5 {[%clk 0:00:56.7]} 41. g3 {[%clk 0:00:05.2]} 41... f5
{[%clk 0:00:56.9]} 42. dxe6 {[%clk 0:00:04.1]} 42... Be5 {[%clk 0:00:57.4]} 43.
Re1 {[%clk 0:00:03.5]} 43... Bf6 {[%clk 0:00:57.6]} 44. e7 {[%clk 0:00:03.3]}
44... Rfe8 {[%clk 0:00:57.7]} 45. Qc4+ {[%clk 0:00:02.9]} 45... Kg7 {[%clk
0:00:58]} 0-1

[Event "Late-Titled-Tuesday-Blitz-February-20-2024"]
[Site "Chess.com"]
[Date "2024.02.20"]
[Round "4"]
[White "Chesstrainer1"]
[Black "krzyzan94"]
[Result "0-1"]
[WhiteElo "2475"]
[BlackElo "2773"]
[TimeControl "180+1"]
[EndTime "14:38:19 PST"]
[Termination "krzyzan94 won by checkmate"]

1. e4 {[%clk 0:02:55.9]} 1... c5 {[%clk 0:03:00.1]} 2. Nf3 {[%clk 0:02:55.2]}
2... d6 {[%clk 0:03:00.1]} 3. d4 {[%clk 0:02:55.8]} 3... cxd4 {[%clk 0:03:01]}
4. Nxd4 {[%clk 0:02:56.2]} 4... Nf6 {[%clk 0:03:01.6]} 5. Nc3 {[%clk 0:02:56.8]}
5... a6 {[%clk 0:03:02.1]} 6. Be2 {[%clk 0:02:57.4]} 6... e5 {[%clk 0:03:01.2]}
7. Nb3 {[%clk 0:02:58]} 7... Be7 {[%clk 0:02:59.8]} 8. Be3 {[%clk 0:02:57.8]}
8... Be6 {[%clk 0:02:59.4]} 9. Nd5 {[%clk 0:02:55.3]} 9... Nxd5 {[%clk
0:02:55.8]} 10. exd5 {[%clk 0:02:54.9]} 10... Bf5 {[%clk 0:02:56.5]} 11. Qd2
{[%clk 0:02:55.5]} 11... O-O {[%clk 0:02:54.1]} 12. O-O {[%clk 0:02:55.6]} 12...
Nd7 {[%clk 0:02:50.5]} 13. Na5 {[%clk 0:02:55.5]} 13... Qc7 {[%clk 0:02:42.3]}
14. c4 {[%clk 0:02:51.3]} 14... Bg6 {[%clk 0:02:40.2]} 15. b4 {[%clk 0:02:44.7]}
15... f5 {[%clk 0:02:35.3]} 16. f4 {[%clk 0:02:44.6]} 16... exf4 {[%clk
0:02:21.3]} 17. Bxf4 {[%clk 0:02:44.1]} 17... Bf6 {[%clk 0:02:16.4]} 18. Rac1
{[%clk 0:02:43.6]} 18... Be5 {[%clk 0:02:16.5]} 19. c5 {[%clk 0:02:09.1]} 19...
Rae8 {[%clk 0:02:10.8]} 20. c6 {[%clk 0:02:03]} 20... bxc6 {[%clk 0:02:06.7]}
21. Nxc6 {[%clk 0:01:54.2]} 21... Qb6+ {[%clk 0:01:44.7]} 22. Kh1 {[%clk
0:01:43.9]} 22... Bxf4 {[%clk 0:01:43.8]} 23. Rxf4 {[%clk 0:01:44.2]} 23... Nf6
{[%clk 0:01:34.4]} 24. Bc4 {[%clk 0:00:31.6]} 24... Re4 {[%clk 0:01:08]} 25. a4
{[%clk 0:00:27.2]} 25... Rfe8 {[%clk 0:01:04.6]} 26. h3 {[%clk 0:00:27]} 26...
Nh5 {[%clk 0:00:59.5]} 27. Rf3 {[%clk 0:00:23.3]} 27... f4 {[%clk 0:00:58.3]}
28. Bd3 {[%clk 0:00:17.3]} 28... Ng3+ {[%clk 0:00:51.5]} 29. Kh2 {[%clk
0:00:16.9]} 29... Re3 {[%clk 0:00:47.7]} 30. Bxg6 {[%clk 0:00:13.9]} 30... Rxf3
{[%clk 0:00:16.2]} 31. Bxe8 {[%clk 0:00:13.4]} 31... Rf1 {[%clk 0:00:11.2]} 32.
Bd7 {[%clk 0:00:11.2]} 32... Qg1# {[%clk 0:00:10.1]} 0-1

[Event "Late-Titled-Tuesday-Blitz-February-20-2024"]
[Site "Chess.com"]
[Date "2024.02.20"]
[Round "4"]
[White "kibromNNN"]
[Black "Supelyel"]
[Result "0-1"]
[WhiteElo "1737"]
[BlackElo "2401"]
[TimeControl "180+1"]
[EndTime "14:38:21 PST"]
[Termination "Supelyel won by checkmate"]

1. d4 {[%clk 0:03:00.7]} 1... d6 {[%clk 0:02:59.6]} 2. c4 {[%clk 0:02:58.8]}
2... Nf6 {[%clk 0:02:57.8]} 3. Nc3 {[%clk 0:02:56.9]} 3... Nbd7 {[%clk
0:02:56.9]} 4. e4 {[%clk 0:02:55.7]} 4... e5 {[%clk 0:02:55.4]} 5. d5 {[%clk
0:02:54]} 5... Be7 {[%clk 0:02:54.1]} 6. Be2 {[%clk 0:02:49]} 6... O-O {[%clk
0:02:53.8]} 7. h3 {[%clk 0:02:39.1]} 7... Nc5 {[%clk 0:02:52]} 8. Qc2 {[%clk
0:02:37.5]} 8... a5 {[%clk 0:02:52.2]} 9. b3 {[%clk 0:02:34.9]} 9... c6 {[%clk
0:02:42.2]} 10. Nf3 {[%clk 0:02:27.8]} 10... h6 {[%clk 0:02:41.2]} 11. O-O
{[%clk 0:02:25.8]} 11... Bd7 {[%clk 0:02:19.3]} 12. Be3 {[%clk 0:02:07.4]} 12...
b6 {[%clk 0:02:01.9]} 13. Rfd1 {[%clk 0:01:50]} 13... cxd5 {[%clk 0:02:00.1]}
14. cxd5 {[%clk 0:01:32.1]} 14... Rc8 {[%clk 0:01:49.5]} 15. Nd2 {[%clk
0:01:09.6]} 15... b5 {[%clk 0:01:35.5]} 16. Qb2 {[%clk 0:01:07.2]} 16... b4
{[%clk 0:01:31.7]} 17. Na4 {[%clk 0:00:49.7]} 17... Nfxe4 {[%clk 0:01:12.2]} 18.
Nxe4 {[%clk 0:00:42.3]} 18... Nxe4 {[%clk 0:01:11.5]} 19. Bb6 {[%clk 0:00:34.8]}
19... Qe8 {[%clk 0:01:03.3]} 20. Bxa5 {[%clk 0:00:20.1]} 20... Bxa4 {[%clk
0:00:38]} 21. bxa4 {[%clk 0:00:20.4]} 21... Nc3 {[%clk 0:00:31.4]} 22. Re1
{[%clk 0:00:16.6]} 22... Rb8 {[%clk 0:00:23.5]} 23. Bxb4 {[%clk 0:00:10.3]}
23... Nxd5 {[%clk 0:00:19.6]} 24. a3 {[%clk 0:00:09.2]} 24... Qxa4 {[%clk
0:00:17.7]} 25. Rab1 {[%clk 0:00:03.5]} 25... Nf4 {[%clk 0:00:16.6]} 26. Bd1
{[%clk 0:00:01.5]} 26... Qa8 {[%clk 0:00:16.7]} 27. Kh1 {[%clk 0:00:00.8]} 27...
Qxg2# {[%clk 0:00:16.1]} 0-1